{"text_format":"3","workbook":"xlsx","n_sheets":1,"sheets":["Výdavky na začiatku podnikania"],"not_rendered":{"defined_names":1},"read":"whole","date_system":"1900"}

{"sheet":"Výdavky na začiatku podnikania","index":0,"n_rows":120,"n_cols":4,"rows_kept":120,"merged":[[1,1,1,3],[10,1,10,3],[17,1,17,3],[25,1,25,3],[34,1,34,3],[42,1,42,3],[50,1,50,3],[55,1,55,3],[57,1,57,3],[59,1,59,3],[60,1,60,3],[69,1,69,3],[76,1,76,3],[81,1,81,3],[82,1,82,3],[90,1,90,3],[102,1,102,3],[110,1,110,3],[115,1,115,3]]}
["VÝDAVKY NA ZAČIATKU PODNIKANIA",null,null,"NÁZOV SPOLOČNOSTI"]
[null,"POZNÁMKA, KÝM ZAČNETE TENTO HÁROK POUŽÍVAŤ\nMnohí ľudia, ktorí niekedy skúšali začať podnikať, podcenili počiatočné náklady a následne čelili hrozbe, že budú fungovať s nedostatočnou kapitálovou rezervou. Kľúčom k tomu, ako sa takejto nepríjemnej situácii vyhnúť, je prísne plánovanie a prieskum. Naša šablóna Výdavky na začiatku podnikania vás prevedie celým procesom.\n\nZAČNITE ODHADOM NÁKLADOV\nKoľko bude stáť, kým sa podnik postaví na nohy a začne fungovať? Dôležitá je presnosť a zmysel pre detail. Pre každú kategóriu výdavkov si spíšte zoznam všetkého, čo bude treba kúpiť. Zahrňte hmotný majetok (napríklad vybavenie, inventár), ale aj služby (napríklad rekonštrukcia, poistenie). Potom sa môžete rozhodnúť, kde daný tovar alebo službu nakúpite. Prezrite si ponuku viacerých dodávateľov, porovnávajte obchody. Neberte do úvahy len cenu. Dôležité sú aj iné faktory, ako napríklad platobné podmienky, dodávka, spoľahlivosť, servis. "]
[]
[null,"VÝDAVKY NA ZAČIATKU PODNIKANIA"]
[null,"BUDOVY/NEHNUTEĽNOSTI"," ","SUMA"]
[null,"Kúpa",null,{"v":0,"d":"0.00 €"}]
[null,"Stavba",null,{"v":0,"d":"0.00 €"}]
[null,"Rekonštrukcia",null,{"v":0,"d":"0.00 €"}]
[null,"Iné",null,{"v":0,"d":"0.00 €"}]
[null,"Spolu",null,{"$f":"SUBTOTAL(109,Nehnuteľnosť[SUMA])","v":{"v":0,"d":"0.00 €"}}]
[]
[null,"VYLEPŠENIA PRENAJATÉHO PRIESTORU"," ","SUMA"]
[null,"Položka 1",null,{"v":0,"d":"0.00 €"}]
[null,"Položka 2",null,{"v":0,"d":"0.00 €"}]
[null,"Položka 3",null,{"v":0,"d":"0.00 €"}]
[null,"Položka 4",null,{"v":0,"d":"0.00 €"}]
[null,"Spolu",null,{"$f":"SUBTOTAL(109,Vylepšenia[SUMA])","v":{"v":0,"d":"0.00 €"}}]
[]
[null,"ZOZNAM KAPITÁLOVÉHO VYBAVENIA"," ","SUMA"]
[null,"Nábytok",null,{"v":0,"d":"0.00 €"}]
[null,"Vybavenie",null,{"v":0,"d":"0.00 €"}]
[null,"Opravy",null,{"v":0,"d":"0.00 €"}]
[null,"Spotrebiče",null,{"v":0,"d":"0.00 €"}]
[null,"Iné",null,{"v":0,"d":"0.00 €"}]
[null,"Spolu",null,{"$f":"SUBTOTAL(109,Kapitál[SUMA])","v":{"v":0,"d":"0.00 €"}}]
[]
[null,"VÝDAVKY NA LOKALITU A SPRÁVU"," ","SUMA"]
[null,"Prenájom",null,{"v":0,"d":"0.00 €"}]
[null,"Preddavky na energie",null,{"v":0,"d":"0.00 €"}]
[null,"Zákonné a účtovné poplatky",null,{"v":0,"d":"0.00 €"}]
[null,"Poistenie platené vopred",null,{"v":0,"d":"0.00 €"}]
[null,"Mzdy pred otvorením ",null,{"v":0,"d":"0.00 €"}]
[null,"Iné",null,{"v":0,"d":"0.00 €"}]
[null,"Spolu",null,{"$f":"SUBTOTAL(109,VýdavkyNaSprávu[SUMA])","v":{"v":0,"d":"0.00 €"}}]
[]
[null,"INVENTÁR POTREBNÝ NA OTVORENIE"," ","SUMA"]
[null,"Kategória 1",null,{"v":0,"d":"0.00 €"}]
[null,"Kategória 2",null,{"v":0,"d":"0.00 €"}]
[null,"Kategória 3",null,{"v":0,"d":"0.00 €"}]
[null,"Kategória 4",null,{"v":0,"d":"0.00 €"}]
[null,"Kategória 5",null,{"v":0,"d":"0.00 €"}]
[null,"Spolu",null,{"$f":"SUBTOTAL(109,InventárPotrebnýNaOtvorenie[SUMA])","v":{"v":0,"d":"0.00 €"}}]
[]
[null,"VÝDAVKY NA REKLAMU A PROPAGAČNÉ AKCIE"," ","SUMA"]
[null,"Reklama",null,{"v":0,"d":"0.00 €"}]
[null,"Plagáty",null,{"v":0,"d":"0.00 €"}]
[null,"Tlač",null,{"v":0,"d":"0.00 €"}]
[null,"Cestovanie/pohostenie",null,{"v":0,"d":"0.00 €"}]
[null,"Iné/ďalšie kategórie",null,{"v":0,"d":"0.00 €"}]
[null,"Spolu",null,{"$f":"SUBTOTAL(109,VýdavkyNaPropagačnéAkcie[SUMA])","v":{"v":0,"d":"0.00 €"}}]
[]
[null,"ĎALŠIE VÝDAVKY"," ","SUMA"]
[null,"Ďalší výdavok 1",null,{"v":0,"d":"0.00 €"}]
[null,"Ďalší výdavok 2",null,{"v":0,"d":"0.00 €"}]
[null,"Spolu",null,{"$f":"SUBTOTAL(109,ĎalšieVýdavky[SUMA])","v":{"v":0,"d":"0.00 €"}}]
[]
[null,"Rezerva na nepredvídateľné okolnosti",null,{"v":0,"d":"0.00 €"}]
[]
[null,"Pracovný kapitál ",null,{"v":0,"d":"0.00 €"}]
[]
[null,"PRIDAJTE REZERVU NA NEPREDVÍDATEĽNÉ OKOLNOSTI\nNezabudnite v komentári vysvetliť, prečo ako rezervu odkladáte práve túto sumu. \n\nURČENIE PEŇAŽNÉHO TOKU\nPri otvorení nemôžete mať na bankovom účte nulu. Potrebujete finančnú rezervu na výdavky, ktoré sa v priebehu podnikania vyskytnú. V ideálnom prípade by ste si mali pripraviť 12-mesačnú prognózu peňažného toku. Práve tu vypracujete odhad potrieb pracovného kapitálu. Zatiaľ buď nechajte tento riadok prázdny, alebo vyplňte aspoň hrubý odhad. Po dokončení peňažného toku sa môžete vrátiť a doplniť presne vypočítanú sumu.\n\nZADAJTE SVOJE ZDROJE KAPITÁLU\nTeraz, keď ste odhadli, aké množstvo kapitálu budete na začiatku potrebovať, mali by ste venovať pozornosť hornej časti tohto hárka. Zadajte sumu, ktorú investujete sami, sumu, ktorú vložia partneri alebo investori, a sumu, ktorú pokryjete úverom."]
[]
[null,"ZDROJE KAPITÁLU"]
[null,"INVESTÍCIA VLASTNÍKA (MENO A PERCENTO VLASTNÍCKEHO PODIELU)"," ","SUMA"]
[null,"VAŠE MENO A PERCENTO VLASTNÍCKEHO PODIELU",null,{"v":0,"d":"0.00 €"}]
[null,"Ďalší investor",null,{"v":0,"d":"0.00 €"}]
[null,"Ďalší investor",null,{"v":0,"d":"0.00 €"}]
[null,"Ďalší investor",null,{"v":0,"d":"0.00 €"}]
[null,"Spolu",null,{"$f":"SUBTOTAL(109,InvestícieVlastníkov[SUMA])","v":{"v":0,"d":"0.00 €"}}]
[]
[null,"ÚVERY Z BÁNK"," ","SUMA"]
[null,"Banka 1",null,{"v":0,"d":"0.00 €"}]
[null,"Banka 2",null,{"v":0,"d":"0.00 €"}]
[null,"Banka 3",null,{"v":0,"d":"0.00 €"}]
[null,"Banka 4",null,{"v":0,"d":"0.00 €"}]
[null,"Spolu",null,{"$f":"SUBTOTAL(109,ÚveryZBánk[SUMA])","v":{"v":0,"d":"0.00 €"}}]
[]
[null,"ĎALŠIE ÚVERY"," ","SUMA"]
[null,"Zdroj 1",null,{"v":0,"d":"0.00 €"}]
[null,"Zdroj 2",null,{"v":0,"d":"0.00 €"}]
[null,"Spolu",null,{"$f":"SUBTOTAL(109,ĎalšieÚvery[SUMA])","v":{"v":0,"d":"0.00 €"}}]
[]
[null,"POSKYTNITE DÔKAZ O RUČENÍ\nAk tento plán použijete ako podklad pri žiadosti o poskytnutie úveru v banke, v dolnej časti môžete uviesť, aký majetok ponúkate na založenie a aká je ich odhadovaná hodnota. Buďte pripravení poskytnúť dôkaz o odhadovanej hodnote majetku, ktorý ponúkate ako ručenie."]
[]
[null,"SÚHRNNÝ VÝKAZ"]
[null,"ZDROJ KAPITÁLU"," ","SÚČTY"]
[null,"Investície vlastníkov a iné investície",null,{"$f":"InvestícieVlastníkov[[#Totals],[SUMA]]","v":{"v":0,"d":"0.00 €"}}]
[null,"Úvery z bánk",null,{"$f":"ÚveryZBánk[[#Totals],[SUMA]]","v":{"v":0,"d":"0.00 €"}}]
[null,"Ďalšie úvery",null,{"$f":"ĎalšieÚvery[[#Totals],[SUMA]]","v":{"v":0,"d":"0.00 €"}}]
[null,"Spolu",null,{"$f":"SUBTOTAL(109,ZdrojeKapitálu[SÚČTY])","v":{"v":0,"d":"0.00 €"}}]
[]
[null,"VÝDAVKY NA ZAČIATKU PODNIKANIA"," ","SÚČTY"]
[null,"Budovy/nehnuteľnosti",null,{"$f":"Nehnuteľnosť[[#Totals],[SUMA]]","v":{"v":0,"d":"0.00 €"}}]
[null,"Vylepšenia prenajatého priestoru",null,{"$f":"Vylepšenia[[#Totals],[SUMA]]","v":{"v":0,"d":"0.00 €"}}]
[null,"Kapitálové vybavenie",null,{"$f":"Kapitál[[#Totals],[SUMA]]","v":{"v":0,"d":"0.00 €"}}]
[null,"Výdavky na lokalitu a správu",null,{"$f":"VýdavkyNaSprávu[[#Totals],[SUMA]]","v":{"v":0,"d":"0.00 €"}}]
[null,"Inventár potrebný na otvorenie",null,{"$f":"InventárPotrebnýNaOtvorenie[[#Totals],[SUMA]]","v":{"v":0,"d":"0.00 €"}}]
[null,"Výdavky na reklamu/propagačné akcie",null,{"$f":"VýdavkyNaPropagačnéAkcie[[#Totals],[SUMA]]","v":{"v":0,"d":"0.00 €"}}]
[null,"Ďalšie výdavky",null,{"$f":"ĎalšieVýdavky[[#Totals],[SUMA]]","v":{"v":0,"d":"0.00 €"}}]
[null,"Fond na nepredvídateľné okolnosti",null,{"$f":"SUM('Výdavky na začiatku podnikania'!$C$57)","v":{"v":0,"d":"0.00 €"}}]
[null,"Pracovný kapitál",null,{"$f":"SUM('Výdavky na začiatku podnikania'!$C$59)","v":{"v":0,"d":"0.00 €"}}]
[null,"Spolu",null,{"$f":"SUBTOTAL(109,VýdavkyNaZačiatkuPodnikania[SÚČTY])","v":{"v":0,"d":"0.00 €"}}]
[]
[null,"ZABEZPEČENIE A RUČENIE K ŽIADOSTI O ÚVER"]
[null,"RUČENIE K ŽIADOSTI O ÚVER","POPIS","HODNOTA"]
[null,"Nehnuteľnosť",null,{"v":0,"d":"0.00 €"}]
[null,"Iné ručenie",null,{"v":0,"d":"0.00 €"}]
[null,"Iné ručenie",null,{"v":0,"d":"0.00 €"}]
[null,"Iné ručenie",null,{"v":0,"d":"0.00 €"}]
[null,"Spolu",null,{"$f":"SUBTOTAL(109,Ručenie[HODNOTA])","v":{"v":0,"d":"0.00 €"}}]
[]
[null,"VLASTNÍCI"," ","  "]
[null,"Sem zadajte svoje meno"]
[null,"Ďalší vlastník"]
[null,"Ďalší vlastník"]
[]
[null,"RUČITELIA ÚVERU (INÍ AKO VLASTNÍCI)"," ","  "]
[null,"Ručiteľ úveru 1"]
[null,"Ručiteľ úveru 2"]
[null,"Ručiteľ úveru 3"]